Workbook

Sheet RESUMO
A2: MINISTERIO DA SAUDE | C2: UNITED NATIONS DEVELOPMENT PROGRAMME
A3: TÍTULO:
A4: LABORATORIO DE SAUDE PUBLICA | E4: MAPA DE QUANTIDADES
A5: LOTE 1 | E5: (ESTIMATIVAS DE CUSTO)
A6: MANICA | E6: RESUMO
A9: ITEM | B9: DESCRIÇÃO | C9: UN | D9: QUANT. | F9: PREÇO TOTAL
B10: RESUMO
A11: 1 | B11: PRELIMINARES E GERAIS | F11: =+'PRELIMINARES E GERAIS'!F68 -> 0
A12: 2 | B12: MODULOS PREFABRICADOS | F12: =+'MODULOS PRE FABRICADOS'!F67 -> 0
A13: 2 | B13: Sanitarios | E13: ='MODULOS PRE FABRICADOS'!F65 -> 0
A14: 2 | B14: EDIFICIOS CONVENCIONAIS | F14: =+#REF! -> 
A15: 2 | B15: Cozinha e manutencao | D15: 1 | E15: =+#REF! -> 
A16: 2 | B16: Lavandaria | D16: 1 | E16: =+#REF! -> 
A17: 2 | B17: Tratamento de Lixo | E17: =+#REF! -> 
A18: 2 | B18: ARRANJOS EXTERIORES | F18: =#REF! -> 
A19: 2 | B19: Vedacao | D19: 1 | E19: =+#REF! -> 
A20: 2 | B20: Pavimentacao | D20: 1 | E20: =+#REF! -> 
A21: 2 | B21: Jardinagem | D21: 1 | E21: =+#REF! -> 
A22: 3 | B22: GUARITA | F22: =GUARITA!F86 -> 0
B24: Total | F24: =F12+F11+F22 -> 0
B25: Iva 17% | F25: =F24*0.17 -> 0
B26: Total incl. iva | F26: =+F25+F24 -> 0
B27: Contigencias10%) | F27: =F26*0.1 -> 0
B28: Grande total | F28: =+F27+F26 -> 0
B30: NOTA:

Sheet PRELIMINARES E GERAIS
A2: MINISTERIO DA SAUDE | C2: UNITED NATIONS DEVELOPMENT PROGRAMME
A3: TÍTULO:
A4: LABORATORIO DE SAUDE PUBLICA | E4: MAPA DE QUANTIDADES
B5: LOTE 1
A6: MANICA | E6: PRELIMINARES E GERAIS
A9: ITEM | B9: DESCRIÇÃO | C9: UN | D9: QUANT. | E9: PREÇO UNITÁRIO | F9: PREÇO TOTAL
A10: 1 | B10: PRELIMINARES E GERAIS
A11: 1.1 | B11: Preparacao de projecto executivo das especialidades, incluindo desenhos, calculos, especificacoes tecnicas e fornecimento de catalogos, de acordo com as normas e recomendacoes da OMS para a execucao de unidades sanitarias para doencas respiratorias graves (SARI) | C11: vg | D11: 1 | F11: =+E11*D11 -> 0
A12: 1.2 | B12: Limpeza geral do terreno reservado a construção, incluindo remoção do lixo para um local a definir pela fiscalização | C12: m2 | D12: 2400 | F12: 0
A13: 1.3 | B13: Montagem e desmontagem de estaleiro central, com vedacao provisoria, escritorio para a fiscalizacao e instalacoes sanitarias, incluindo mobilização e desmobilização de todos equipamentos de estaleiro e pessoal necessários; bem como colocação da placa da obra de acordo com o modelo do Dono da Obra e instruções da fiscalização | C13: vg | D13: 1 | F13: 0
A14: 1.4 | B14: Execucao de testes e ensaios de materiais de construcao, incluindo estudo de composicao de betao e certificados de aco ede blocos | C14: Vg | D14: 1 | F14: =+E14*D14 -> 0
A15: 1.4 | B15: Fornecimento das telas finais de todas as especialidades | C15: Vg | D15: 1 | F15: 0
A16: 1.5 | B16: Fornecimento e execução de base para placa de inauguração incluindo placa de mármore e dizeres a definir pelo Dono de Obra | C16: un | D16: 1 | F16: 0
A17: 1.4 | B17: Limpeza e desinfeccao da obra apos conclusao da mesma. | C17: Vg | D17: 1 | F17: 0
B18: Subtotal | F18: =SUM(F11:F17) -> 0
A20: 2 | B20: IMPLANTACAO E MOVIMENTOS DE TERRAS
A21: 2.1 | B21: Regularização area a implantar as infraestruturas consoante os desniveis do terreno caso hajam, incluindo aterro com solo de empréstimo, rega e compactação a 95% MOD AASHTO e todos trabalhos complementares para boa execução da actividade de acordo com a implantação geral do projecto e instrução do fiscal. (Item condicionado as condicoes do relevo a ser observado apos visita dos concorrentes) | C21: m2 | D21: 340 | F21: =+E21*D21 -> 0
A22: 2.2 | B22: Tratamento do solo contra térmites (muchém), xilófagos dentre muitas outras pragas de insectos que assolam a região, com produto bastante forte em toda a área de edificação, incluindo respectivos arruamentos. | C22: m2 | D22: 340 | F22: =+E22*D22 -> 0
A23: 2.3 | B23: Implantacao da obra incluindo trabalhos de Marcação e colocação de cangalhos dos edifícios | C23: Vg | D23: 1 | F23: =+E23*D23 -> 0
B25: Subtotal | F25: =SUM(F21:F24) -> 0
A27: 3 | B27: REDE DE ABASTECIMENTO DE AGUA
A28: 3.1 | B28: Fornecimento e montagem de tubagem exterior enterrada em polietileno de alta densidade para ligacao e distribuição de água aos edificios definidos no projecto, incluindo acessórios, fixações, bem como todos os trabalhos necessários. | C28: Vg | D28: 1 | F28: =+E28*D28 -> 0
A29: 3.2 | B29: Fornecimento e montagem de torneira de rega de jardim, incluindo tubagem de ligacao e todos acessorios ao seu bom funcionamento | C29: Un | D29: 2 | F29: =+E29*D29 -> 0
A30: 3.3 | B30: Fornecimento e montagem de deposito de agua em polietileno com capacidade de 5.000L enterrado, indluindo execucao decaixa em alvenaria, ligacao ao sistema existente com tubagem de polietileno de alta densidade, aplicacao de valvulas de retencao e seccionamento e todos os trabalhos complementares ao bom funcionamento | C30: Un | D30: 1 | F30: =+E30*D30 -> 0
A31: 3.4 | B31: Fornecimento e montagem de deposito de agua com capacidade de 1.000L do tipo plastex , incluindo execucao de base de assentamento em betao, ligacao ao sistema existente com tubagem de polietileno de alta densidade, aplicacao de valvulas de retencao e seccionamento e todos os trabalhos complementares ao bom funcionamento | C31: Un | D31: 1 | F31: =+E31*D31 -> 0
A32: 3.5 | B32: Fornecimento e montagem de bomba de agua com hidropressor e todas as ligacoes necessarias,aplicacao de valvulas de retencao e seccionamento e todos os trabalhos complementares ao bom funcionamento | C32: un | D32: 1 | F32: =+E32*D32 -> 0
B33: Subtotal | F33: =SUM(F28:F32) -> 0
A35: 4 | B35: REDE DE ESGOTOS
A36: 4.1 | B36: Fornecimento e montagem de tubagem plastica enterrada para coleta de aguasdos laboratorios e canalizacao a Fossa quimica, incluindo acessórios de ligacao, bem como todos os trabalhos necessários. | C36: Vg | D36: 1 | F36: =+E36*D36 -> 0
A37: 4.2 | B37: Fornecimento e montagem de tubagem plastica enterrada para ligacao dos esgotos do edificio a Fossa septic e Dreno, incluindo execucao de caixas de inspeccao, acessórios de ligacao, bem como todos os trabalhos necessários. | C37: Vg | D37: 1 | F37: 0
A38: 4.4 | B38: Construção de fossa septica,em alvenaria e tampa em betao armado, dimensionada para 20 pessoas incluíndo todos os trabalhos necessarioa a sua execucao e funcionamento | C38: un | D38: 1 | F38: 0
A39: 4.4 | B39: Fornecimento e montagem de fossa Quimica em polietereno de alta densidade de 3000L, incluíndo todos os trabalhos necessarioa a sua execucao e funcionamento | C39: un | D39: 2 | F39: 0
A40: 4.4 | B40: Construção de dreno de infiltração com 1,5 m de diâmetro e 2,0 m de altura útil,em alvenaria e tampa em betao armado, incluíndo todos os trabalhos necessarioa a sua execucao e funcionamento | C40: un | D40: 1 | F40: 0
B41: Subtotal | F41: =SUM(F36:F40) -> 0
A43: 5 | B43: REDE DE ELECTRICIDADE
A44: 5.1 | B44: Execucao de rede electrica de ligacao ao quadro electrico geral e deste aos quadros parciais dos edificios e gerador, incluindo caixas de passagem todos os trabalhos necessarios | C44: Vg | D44: 1 | F44: =+E44*D44 -> 0
A45: 5.2 | B45: Fornecimento e montagem de Quadro electrico geral, incluindo , os respectivos fusiveis, ligacao a terra de proteccao e todos os trabalhos necessarios. | C45: Un | D45: 1 | F45: =+E45*D45 -> 0
A46: 5.3 | B46: Execucao de Alpendre de gerador com 9m2 com piso em betão e cobertura em estrutura metálica, chapas IBR 0.6mm e fechamento lateral com malha de rede expandda, incluindo portao de acesso a manutencao.. | C46: un | D46: 1 | F46: =+E46*D46 -> 0
A47: 5.3 | B47: Execucao de rede de Informática nos seguintes compartimentos: Escritório, Sala Receção Amostras e Sala de Amplificação; total 6 pontos de conexão. Inclui bastidor, patch panel calhas para passagem de cabos, certificação e todos os acessórios necessários ao seu perfeito funcionamento. | C47: VG | D47: 1 | F47: =+E47*D47 -> 0
B48: Subtotal | F48: =SUM(F44:F47) -> 0
A50: 6 | B50: SINALIZACAO DE EMERGENCIA COMBATE A INCENDIOS
A51: 6.1 | B51: Sinalizacao luminosa de saida de emergencia | C51: UN | D51: 6 | F51: =+E51*D51 -> 0
A52: 6.2 | B52: caixa metalica com Kit de primeiros socorros | C52: un | D52: 1 | F52: =+E52*D52 -> 0
A53: 6.3 | B53: Fornecimento e montagem de extintores abc, PO 9kg, incluindo a respectiva sinalizacao e instrucao de uso | C53: un | D53: 3 | F53: =+E53*D53 -> 0
A54: 6.4 | B54: Fornecimento e montagem de extintores abc, CO2 5kg, incluindo a respectiva sinalizacao e instrucao de uso | C54: un | D54: 3 | F54: 0
A55: 6.5 | B55: Fornecimento e montagem de sistema de detetores de fumo, incluindo painel de 4 zonas, e sirene e iluminacao de alerta. De acordo com as especificacoes tecnicas | C55: VG | D55: 1 | F55: 0
B56: Subtotal | F56: =SUM(F51:F55) -> 0
A58: 7 | B58: ARRANJOS EXTERIORES
A59: 7.1 | B59: Execucao de pavimento de circulacao pedonal embetonilha queimada e esquartelada, incluindo aterros, enrrocamento e compactacao, e todos os trabalhos necessarios a uma boa execucao. | C59: m2 | D59: =340-150 -> 190 | F59: =+E59*D59 -> 0
A60: 7.2 | B60: Execucao em pavimento de circulacao de viaturas em blocos de pave tipo Zig-zag da classe 45, com 80mm de espessura, incluindodelimitacao em lancil de betao, aterros, compactacao e estabilizacao com solo cimento,aplicacao de lancis em betao e todos os trabalhos complementares. | C60: m2 | D60: 380 | F60: 0
A61: 7.3 | B61: reabilitacao do muro de vedacao existente, incluindo pintura e todos os trabalhos complementares e de acabamento necessarios | C61: ml | D61: 220 | F61: 0
A62: 7.4 | B62: Fornecimento e montagem de portao de correr do tipo Clear Vu, para o acesso de viaturas, com 3.50x1.80 m, com Ref. Invisible wall" incluindo equipamento de comando electrónico compatível. | C62: un | D62: 1 | F62: 0
A63: 7.5 | B63: Fornecimento e montagem de portao de pedestres do tipo Clear Vu, para o acesso de pedestres, com 1.20x1.80 m, com Ref. Invisible wall" incluindo equipamento de comando electrónico compatível. | C63: un | D63: 1 | F63: 0
A64: 7.6 | B64: Fornecimento e montagem de postes de iluminacao de 3m de altura, com luminarias do tipo LED, incluindo todos os trabalhos e acessorios de ligacao. | C64: un | D64: 7 | F64: 0
A65: 7.7 | B65: Execucao de floreiras hornamentais, incluindo fornecimento e aplicacao de terra vegetal, relva e plantas de pequeno porte. | C65: m2 | D65: 600 | F65: 0
B66: Subtotal | F66: =SUM(F59:F65) -> 0
B68: SUBTOTAL -PRELIMINARES E GERAIS | F68: =+F25+F18+F48+F41+F33+F66+F56 -> 0

Sheet MODULOS PRE FABRICADOS
A2: MINISTERIO DA SAUDE | C2: UNITED NATIONS DEVELOPMENT PROGRAMME
A3: TÍTULO:
A4: LABORATORIO DE SAUDE PUBLICA | E4: MAPA DE QUANTIDADES
A5: LOTE 1
B6: MANICA | E6: MODULOS PRE FABRICADOS
A9: ITEM | B9: DESCRIÇÃO | C9: UN | D9: QUANT. | E9: PREÇO UNITÁRIO | F9: PREÇO TOTAL
A10: 1 | B10: EDIFICIO DE LABORATORIO
A11: 1 | B11: Edificio de LABORATORIO com 18.20x8.44m em de modulo pre fabricado, com sobrecarga admissivel de 400kg/m2, com compartimentacao de acordo com o projecto e especificacoes tecnicas constantes na memorias descritivas dos Termos de referencia, (em anexo)
A12: 1.1 | B12: Execucao de Base de assentamento em laje de betao armado, elevado a 60cm do solo, com rampa de acesso e escadaria, de acordo com o projecto, incluindo, movimentos de terra, fundacoes, acabamento em esmalte poliuretano e todos os trabalhos complementares. | C12: m2 | D12: 154 | F12: =+E12*D12 -> 0
F13: =+E13*D13 -> 0
A14: 1.2 | B14: Fornecimento e montagem de modulo prefabricado com cerca de 154 m2 de acordo com as dimencoes e especificacoes do projecto. Incluindo pavimento Viroc, caixilharia, instalacoes tecnicas (Abastecimento de Agua, esgotos, electricidade e HAVAC), equipamentos sanitarios e arcondicionados, transporte e montagem e todos os trabalhos complementares e de acabamento para o seu bom funcionamento. | C14: un | D14: 1 | F14: 0
A16: 1.3 | B16: Execucao de cobertura em chapa IBR de 6mm assente sobre uma estrutura asnas e madres de perfis metalicos galvanizados espassadas a 60cm. | C16: m2 | D16: 154 | F16: 0
B17: Subtotal | F17: =SUM(F11:F16) -> 0 | G17: =+F17/D16 -> 0
A19: 2 | B19: BANCADAS FENOLICAS
A20: 2.1 | B20: fornecimento e montagem de bancadas fenolicas em resina de 22mm com as seguintes caracteristicas e dimensoes
B21: 1.20x0.70x0.90m (Reagent prep / Sample room) | C21: un | D21: 2 | F21: =+E21*D21 -> 0
B22: 2.000x0.70x0.90m (Extraction / Amplification room)) | C22: un | D22: 2 | F22: 0
B23: 1.60x0.70x0.90m com cuba de mesmo material incluindo torneira de laboratorio e todos acessorios de ligacao(Extraction room) | C23: un | D23: 1 | F23: 0
B24: 2.20x0.70x0.90m com cuba de mesmo material incluindo torneira de laboratorio e todos acessorios de ligacao (Sterilization room) | C24: un | D24: 1 | F24: 0
B25: Subtotal | F25: =SUM(F21:F24) -> 0
A27: 3 | B27: MATERINDADE
A28: 3 | B28: Edificio de Maternidade executado em de modulo pre fabricado, com compartimentacao de acordo com o projecto e especificacoes tecnicas constantes na memorias descritivas dos Termos de referencia.
A29: 3.1 | B29: Execucao de Base de assentamento em laje de betao armado, elevado a 60cm do solo, com rampa de acesso e escadaria, de acordo com o projecto, incluindo, movimentos de terra, fundacoes e todos os trabalhos complementares. | C29: m2 | D29: 115 | E29: 120 | F29: =+E29*D29 -> 13800
F30: =+E30*D30 -> 0
A31: 3.2 | B31: Fornecimento e montagem de modulo prefabricado com cerca de 115 m2 de acordo com as dimencoes e especificacoes do projecto. Incluindo transporte, caixilharia, instalacoes tecnicas e todos os trabalhos complementares e de acabamento para o seu bom funcionamento. | C31: un | D31: 1 | E31: 100000 | F31: 100000
F32: 0
A33: 3.3 | B33: Execucao de cobertura em chapa IBR assente sobre uma estrutura asnas e madres de perfis metalicos. | C33: m2 | D33: 115 | E33: 50 | F33: 5750
B35: Subtotal
A37: 4 | B37: EQUIPAMENTOS
A38: 4 | B38: Fornecimento e montagem de ar condicionados do tipo split,incluindo circuito com proteccao e os respectivos apoios, com as seguintes capacidades
A39: 4.1 | B39: AC 9.000 BTU | C39: un | D39: 5 | F39: =+E39*D39 -> 0
B40: AC 12.000 BTU | C40: un | D40: 3 | F40: =+E40*D40 -> 0
B42: Fornecimento e montagem de Termo acumulador electrico, incluindo, tubagem de ligacao, circuito com proteccao e todos os trabalhos necessarios com as seguintes capacidades
A43: 4.3 | B43: TA 50L | C43: un | D43: 1 | F43: =+E43*D43 -> 0
B44: Fornecimento e montagem de Chuveiro de emergencia, incluindo, tubagem de ligacao e todos os trabalhos necessarios para o bom funcionamento | C44: un | D44: 1 | F44: 0
B45: Subtotal | F45: =SUM(F39:F44) -> 0
A47: 5 | B47: MORGUE
A48: 5
A49: 5.1 | F49: =+E49*D49 -> 0
A51: 5.2 | F51: =+E51*D51 -> 0
A53: 5.3 | F53: 0
B55: Subtotal | G55: =+F55/D53 -> 
A57: 5 | B57: SANITARIOS
A58: 5 | B58: Edificio de sanitarios da enfermaria tenda executado em de modulo pre fabricado, com compartimentacao de acordo com o projecto e especificacoes tecnicas constantes na memorias descritivas dos Termos de referencia.
A59: 5.1 | B59: Execucao de Base de assentamento em laje de betao armado, elevado a 60cm do solo, com rampa de acesso e escadaria, de acordo com o projecto, incluindo, movimentos de terra, fundacoes e todos os trabalhos complementares. | C59: m2 | D59: 120 | E59: 120 | F59: =+E59*D59 -> 14400
A61: 5.2 | B61: Fornecimento e montagem de modulo prefabricado com cerca de 30 m2 de acordo com as dimencoes e especificacoes do projecto. Incluindo transporte, caixilharia, instalacoes tecnicas e todos os trabalhos complementares e de acabamento para o seu bom funcionamento. | C61: un | D61: 4 | E61: 30000 | F61: =+E61*D61 -> 120000
A63: 5.3 | B63: Execucao de cobertura em chapa IBS assente sobre uma estrutura asnas e madres de perfis metalicos. | C63: m2 | D63: 120 | E63: 50 | F63: =+E63*D63 -> 6000
B65: Subtotal
B67: SUBTOTAL - MODULOS PREFABRICADOS | F67: =+F55+F45+F35+F25+F17+F65 -> 0

Sheet GUARITA
A2: MINISTERIO DA SAUDE | C2: UNITED NATIONS DEVELOPMENT PROGRAMME
A3: TÍTULO:
A4: LABORATORIO DE SAUDE PUBLICA | E4: MAPA DE QUANTIDADES
A5: LOTE 1
A6: MANICA | E6: GUARITA
A9: ITEM | B9: DESCRIÇÃO | C9: UN | D9: QUANT. | E9: PREÇO UNITÁRIO | F9: PREÇO TOTAL
A10: 1 | B10: GUARITA
A11: 1.1 | B11: FUNDACOES
A12: 1.1.1 | B12: Escavacao de caboucos de fundacao, incluindo rega e compactacao do leito da fundacao | C12: m3 | D12: 20 | F12: =+E12*D12 -> 0
A13: 1.1.2 | B13: Aterro em terras provenientes da escavacao, incluindo rega e compactacao | C13: m2 | D13: 35 | F13: 0
A14: 1.1.3 | B14: Fornecimento e aplicacao de Enrrocamento em pedra mediana em camada de 10cm nas bases da fundacao e do pavimento | C14: m3 | D14: 1.8 | F14: 0
A15: 1.1.4 | B15: Execucao de Sapatas isoladas dos pilares em betao B25 80x80x30cm, armadas em Ø12mm, incluindo cofragem e descofragem e todos os trabalhos necessarios a boa execucao | C15: m3 | D15: =(0.8*0.8*0.3)*6 -> 1.152 | F15: 0
A16: 1.1.5 | B16: Execucao de Sapata corrida em betao B25com seccao 60x20cm incluindo todos os trabalhos necessarios a boa execucao | C16: m3 | D16: =0.6*0.2*16 -> 1.92 | F16: 0
A17: 1.1.6 | B17: Fornecimento e assentamento de Alvenaria de fundacao em blocos macissados de 20cm assentes em argamassa de cimento e areia ao traco de 1:5 | C17: m2 | D17: 13.4 | F17: 0
A18: 1.1.7 | B18: Execucao de Viga de pavimento em betao armado B25 com seccao 20x30cm armada com 4 Ø10mm e estribos Ø6mm @15cm incluindo cofragem e descofragem e todos os trabalhos necessarios a boa execucao | C18: m3 | D18: =16*0.3*0.2 -> 0.96 | F18: 0
A19: 1.1.8 | B19: Fornecimento e colocacao de Aterros de solos saibrosos da camara de emprestimo, incluindo trabalhos de rega e compactacao | C19: m3 | D19: =5.5*2.5*0.6 -> 8.25 | F19: 0
A20: 1.1.9 | B20: Pavimento em betao B25 de 12 cm de espessura ligeiramente armado em malhasol de @20cm incluindo cofragem e descofragem e todos os trabalhos necessarios a boa execucao | C20: m3 | D20: 5.4 | F20: 0
B21: Subtotal | F21: =SUM(F12:F20) -> 0
A23: 1.2 | B23: SUPER ESTRUTURA
A24: 1.2.1 | B24: Execucao de Pilares em betao armado B25 com seccao 20x30cm e uma altura media de 4.60m armados com 4 Ø12mm e estribos Ø6mm @15cmincluindo cofragem e descofragem e todos os trabalhos necessarios a boa execucao | C24: m3 | D24: =0.2*0.3*3*6 -> 1.08 | F24: 0
A25: 1.2.2 | B25: Execucao de Vigas de coroamento em betao armado B25 com seccao 20x30cm e armadas com 4 Ø12mm e estribos Ø6mm @15cmincluindo cofragem e descofragem e todos os trabalhos necessarios a boa execucao | C25: m3 | D25: =16*0.2*0.4 -> 1.28 | F25: 0
A26: 1.2.3 | B26: Fornecimento e assentamento de Alvenaria de bloco vazado de 20, assentes com argamassa de cimento e areia ao traço 1:5r | C26: m2 | D26: =18.5*3 -> 55.5 | F26: 0
A27: 1.2.4 | B27: Fornecimento e assentamento de Grelhas em betao | C27: m2 | D27: 2 | F27: 0
A28: 1.2.6 | B28: Execucao de rampa de acesso, de acordo com os desenhos do projecto | C28: Vg | D28: 1 | F28: 0
B29: Subtotal | F29: =SUM(F24:F28) -> 0
A31: 1.3 | B31: COBERTURA
A32: 1.3.1 | B32: Execucao de laje em betao armado B25 com 15 cm de espessura cmincluindo armadura, cofragem e descofragem e todos os trabalhos necessarios a boa execucao | C32: m2 | D32: =4.3*6.5*0.12 -> 3.354 | F32: 0
A33: 1.3.2 | B33: Execução de betonilha de regularização com argamassa de cimento e areia ao traço 1:3, com caimento de 3% para tubos de queda incluindo aplicação de tinta impermeabilizante, de Imperflex Coberturas (ref.:17-600) ou equivalente, de acordo com instrucoes do fabricante. | C33: m2 | D33: 11.5 | F33: 0
A34: 1.3.3 | B34: Fornecimento e colocação de rufos nos topos das paredes de alvenaria em chapa metálica quinada e com borda de 5 cm | C34: ml | D34: 22 | F34: 0
A35: 1.3.4 | B35: Fornecimento e colocacao de tubo de queda e todos acessórios de ligação e fixação | C35: ml | D35: 6 | F35: 0
B36: Subtotal | F36: =SUM(F32:F35) -> 0
A38: 1.4 | B38: CAIXILHARIA
A39: 1.4.1 | B39: Fornecimento e assentamento de portas Portas em madeira macissa, incluindo todas as ferragens necessarias ao bom funcionamento
B40: Batente simples 0.90x2.10m | C40: un | D40: 1 | F40: 0
B41: Batente simples 0.80x2.10m | C41: un | D41: 1 | F41: 0
A42: 1.4.2 | B42: Fornecimento e assentamento de Janelas em aluminio lacado, incluindo todas a s ferragens para o seu bom funcionamento | H42: `
B43: J1.5 (2,00 x 1,10m) | C43: un | D43: 1 | F43: 0
B44: J2.5 (1,00 x 1,10m) | C44: un | D44: 3 | F44: 0
B45: J3.5 (0,60 x 0,75m) | C45: un | D45: 1 | F45: 0
B46: Subtotal | F46: =SUM(F39:F45) -> 0
A48: 1.5 | B48: REVESTIMENTOS E ACABAMENTOS
A49: 1.5.1 | B49: Fornecimento e aplicação de betonilha simples queimada a colher ao traço 1:3,com almagre cinzento afagada e esquartelada. | C49: m2 | D49: 12.9 | F49: 0
A50: 1.5.2 | B50: Fornecimento e assentamento Tijoleira porcelanicaa com 30x30cm de boa qualidade, em pavimentos de areas humidas e de circulacao, incluindo rodape. | C50: m2 | D50: 12.9 | F50: 0
A51: 1.5.3 | B51: Fornecimento e assentamento de reboco ao traço 1:4 em todas paredes externas e internas do edifício. | C51: m2 | D51: 95 | F51: 0
A52: 1.5.4 | B52: Fornecimento e assentamento Azulejo cerâmico com 20 x 30cm de boa qualidade , em paredes de areas humidas ate uma altura de 2.10m | C52: m2 | D52: 11.5 | F52: 0
A53: 1.5.5 | B53: Fornecimento e colocação de balcão de madeira com 2.4x0.6m acabado em tinta esmalte e todos os trabalhos para o correcto funcionamento | C53: un | D53: 1 | F53: =+E53*D53 -> 0
B54: Subtotal | F54: =SUM(F49:F53) -> 0
A56: 1.6 | B56: PINTURAS
A57: 1.6.1 | B57: Pintura das paredes em duas demãos, com tinta plástica de boa qualidade da CIN, cor a definir pelo dono da obra antecedida dum primário e preparação da superfície a pintar | C57: m2 | D57: 112 | F57: 0
B58: Pintura dos tectoss em duas demãos, com tinta plástica de boa qualidade da CIN, cor a definir pelo dono da obra antecedida dum primário e preparação da superfície a pintar | C58: m2 | D58: 11.5 | F58: 0
A59: 1.6.2 | B59: Pintura de estruturas metálicas com tinta tipo CIN ou similar, incluindo a correcção e preparação de superficies, assim como todos os trabalhos e acessorios necessários à sua correcta aplicação | C59: m2 | D59: 158 | F59: 0
B60: Subtotal | F60: =SUM(F49:F59) -> 0
A62: 1.7 | B62: HIDRAULICA
A63: 1.7.1 | B63: Fornecimento e montagem de tubagem PP-R 20mm para distribuição de água aos pontos definidos no projecto, incluindo valvula de seccionamento, torneiras de esquadria, acessórios, fixações, bem como todos os trabalhos preliminares e complementares | C63: vg | D63: 1 | F63: 0
A64: 1.7.2 | B64: Fornecimento e montagem de tubagem plastica uPVC PN6 Ø 75 mm/Ø 110 mm/ enterrada para ligacao dos esgotos dos edificios ao sistema de esgotos existente, incluindo execucao de caixas de inspeccao, acessórios de ligacao, bem como todos os trabalhos necessários. | C64: Vg | D64: 1 | F64: =+E64*D64 -> 0
A65: 1.7.3 | B65: Fornecimento e montagem de equipamentos sanitarios , incluindo torneiras acessorios e todos os trabalhos de ligacao para o bom funcionamento
B66: Sanita com autoclismo | C66: un | D66: 1 | F66: 0
B67: Lavatorio com pedestal | C67: un | D67: 1 | F67: 0
A68: 1.7.4 | B68: Fornecimento e colocacao de kit de instalacaoes sanitaria composto por porta-rolos, saboneteira liquida, toalheiro | C68: un | D68: 1 | F68: 0
B69: Construção de caixa de inspecção para águas negras , incluíndo todos os trabalhos necessários (escavação, aterro, alvenarias, betão), ligações e tampa em betão armado conforme especificado nos desenhos. | C69: un | D69: 6 | F69: 0
B70: Construção de caixa de inspecção para águas brancas , incluíndo todos os trabalhos necessários (escavação, aterro, alvenarias, betão), ligações e tampa em betão armado conforme especificado nos desenhos. | C70: un | D70: 6 | F70: 0
B71: Subtotal | F71: =SUM(F63:F70) -> 0
A73: 1.8 | B73: ELECTRICIDADE
A74: 1.8.1 | B74: Fornecimento e montagem de Quadro electrico parcial, incluindo dijuntores e ligacao a terra de proteccao. | C74: Un | D74: 1 | F74: 0
A75: 1.8.2 | B75: Execucao de instalacao electrica, incluindo tubagem , cablagem, caixas de derivacao. | C75: Vg | D75: 1 | F75: 0
A76: 1.8.3 | B76: Fornecimento e montagem de aparelhagem electica embebida do tipo LEGRAND, incluindo acessorios e todos os trabalhos complementares para bom funcionamento
B77: interruptores simples | C77: un | D77: 3 | F77: 0
B78: Tomadas simples 2P +T, 16A | C78: un | D78: 6 | F78: 0
A79: 1.8.4 | B79: Fornecimento e montagem de luminarias electicas , incluindo acessorios e todos os trabalhos complementares para bom funcionamento
B80: luminarias florescentes saliente 1x18W estanques com difusor prismatico transparente | C80: un | D80: 2 | F80: =+E80*D80 -> 0
B81: luminarias florescentes saliente 2x18W estanques com difusor prismatico transparente | C81: un | D81: 1 | F81: 0
B82: Aplique exterior com difusor prismatico em policarbonato e lampada a vapor de 70W | C82: Un | D82: 1 | F82: 0
A83: 1.8.5 | B83: Fornecimento e Montagem de ventilador helicoidal de montagem na parede de 83m3/h, incluindo todos os acessórios de fixação e ligação, grelha exterior adequada e comando de controlo através da iluminação: | C83: un | D83: 1 | F83: 0
B84: Subtotal | F84: =SUM(F74:F83) -> 0
B86: SUBTOTAL - GUARITA | F86: =F84+F71+F60+F54+F46+F36+F29+F21 -> 0
